{"text_format":"1","workbook":"xlsx","n_sheets":3,"sheets":["Relació de despeses","Relació d'ingressos ","despeses i ingressos"],"not_rendered":{"charts":0,"images":2,"macros":1,"external_links":1,"defined_names":8,"comments":3,"pivot_tables":0},"unopened":[],"bounds":{"document_bytes":16777216,"sheet_cells":100000,"rows_first":2000,"rows_last":500,"rows_between":2000,"halvings":0,"cell_chars":16384,"cell_head_chars":4096},"cells_cut":0,"cells_raw":0,"read":"whole","date_system":"1900"}

{"sheet":"Relació de despeses","index":0,"n_rows":192,"n_cols":12,"rows_kept":192,"cut":false,"hidden":false,"merged":[[132,0,132,12],[115,11,115,12],[116,11,116,12],[117,11,117,12],[118,11,118,12],[119,0,119,6],[119,11,119,12],[155,0,156,10],[161,4,162,10],[164,0,164,10],[166,0,166,10],[167,0,167,10],[168,0,168,10],[169,0,169,10],[171,0,171,11],[133,11,133,12],[134,11,134,12],[135,11,135,12],[136,11,136,12],[137,0,137,6],[137,11,137,12],[139,11,139,12],[138,0,138,12],[172,0,172,11],[2,2,2,3],[154,0,154,10],[40,0,40,12],[46,0,46,12],[71,11,71,12],[26,11,26,12],[27,0,27,6],[27,11,27,12],[28,0,28,12],[29,11,29,12],[30,11,30,12],[31,11,31,12],[37,11,37,12],[39,0,39,6],[45,0,45,6],[34,0,34,12],[53,11,53,12],[63,11,63,12],[62,11,62,12],[61,11,61,12],[60,11,60,12],[59,11,59,12],[57,11,57,12],[56,11,56,12],[150,0,150,2],[150,3,150,6],[150,11,150,12],[151,0,151,5],[151,11,151,12],[140,11,140,12],[141,11,141,12],[142,11,142,12],[143,0,143,6],[143,11,143,12],[145,11,145,12],[146,11,146,12],[147,11,147,12],[148,11,148,12],[149,0,149,6],[149,11,149,12],[144,0,144,12],[127,11,127,12],[128,11,128,12],[129,11,129,12],[130,11,130,12],[131,0,131,6],[131,11,131,12],[121,11,121,12],[122,11,122,12],[123,11,123,12],[124,11,124,12],[125,0,125,6],[125,11,125,12],[126,0,126,12],[120,0,120,12],[114,0,114,12],[107,0,107,6],[107,11,107,12],[109,11,109,12],[110,11,110,12],[111,11,111,12],[112,11,112,12],[113,0,113,6],[113,11,113,12],[108,0,108,12],[102,0,102,12],[96,0,96,12],[73,11,73,12],[72,11,72,12],[80,11,80,12],[81,0,81,6],[81,11,81,12],[85,11,85,12],[88,0,88,2],[88,3,88,6],[88,11,88,12],[95,0,95,6],[95,11,95,12],[89,0,89,12],[97,11,97,12],[98,11,98,12],[94,11,94,12],[99,11,99,12],[100,11,100,12],[90,0,90,12],[69,11,69,12],[65,11,65,12],[66,11,66,12],[52,0,52,12],[54,11,54,12],[87,11,87,12],[68,11,68,12],[67,11,67,12],[82,0,82,12],[87,0,87,6],[83,11,83,12],[86,11,86,12],[55,11,55,12],[70,0,70,12],[75,0,75,6],[69,0,69,6],[63,0,63,6],[58,0,58,12],[75,11,75,12],[74,11,74,12],[64,0,64,12],[57,0,57,6],[77,11,77,12],[79,11,79,12],[47,11,47,12],[45,11,45,12],[44,11,44,12],[43,11,43,12],[42,11,42,12],[22,0,22,12],[36,11,36,12],[35,11,35,12],[16,0,16,12],[17,11,17,12],[18,11,18,12],[19,11,19,12],[20,11,20,12],[21,0,21,6],[39,11,39,12],[38,11,38,12],[3,0,3,1],[7,1,8,1],[7,0,8,0],[6,0,6,4],[23,11,23,12],[24,11,24,12],[25,11,25,12],[32,11,32,12],[33,0,33,6],[33,11,33,12],[13,11,13,12],[7,11,7,12],[8,11,8,12],[10,0,10,12],[14,11,14,12],[7,3,7,4],[21,11,21,12],[15,11,15,12],[9,0,9,12],[2,9,2,10],[3,9,3,10],[4,9,4,10],[51,0,51,6],[41,11,41,12],[160,1,160,2],[173,0,173,11],[0,0,0,12],[4,0,4,1],[15,0,15,6],[3,2,3,3],[4,2,4,3],[11,11,11,12],[2,0,2,1],[51,11,51,12],[2,4,2,6],[3,4,3,6],[4,4,4,6],[50,11,50,12],[49,11,49,12],[48,11,48,12],[7,2,8,2],[12,11,12,12],[76,0,76,12],[101,0,101,6],[186,0,186,11],[187,0,187,11],[188,0,188,11],[189,0,189,11],[190,0,190,11],[191,0,191,11],[174,0,174,11],[175,0,175,11],[176,0,176,11],[177,0,177,11],[178,0,178,11],[179,0,179,11],[180,0,180,11],[181,0,181,11],[182,0,182,11],[183,0,183,11],[184,0,184,11],[185,0,185,11],[101,11,101,12],[103,11,103,12],[104,11,104,12],[105,11,105,12],[106,11,106,12]]}
["Relació classificada de totes les despeses realitzades per a l'execució de l'activitat  subvencionada"]
[]
["Persona física/jurídica beneficiària:         ",null,null,null,"Import del cost total del projecte:",null,null,null,null,null,null,"euros"]
["Codi de subvenció:",null,null,null,"Import de la subvenció atorgada:",null,null,null,null,null,null,"euros"]
["Nom del projecte subvencionat:",null,null,null,"Període d'execució del projecte subvencionat:",null,null,null,null,null,null,"a"]
[]
["Despeses del projecte/activitat/servei subvencionat (*)"]
["Núm. d'ordre (0)","Número de document: justificants despesa personal (1), factura o rebut/tiquet(2)","Concepte de la factura / \ndocument probatori equivalent","Emissor/a de la factura",null,"Data d'emissió","Import total de la factura","Percentatge d'iva deduït o el de després d'aplicar la Prorrata","Import després de deduïr l'IVA corresponent","Import imputable (dedicat) al projecte (3)","Import imputable a la subvenció municipal (4)","Observacions"]
[null,null,null,"NIF","Nom","dd/mm/aaaa","euros","%","euros","euros","euros"]
["DESPESES DIRECTES (Aquelles que s'identifiquen directament amb el projecte)"]
["D1.  Retribucions i seguretat social (règim general o règim d’autònoms) del personal propi  vinculat/da al projecte de nova contractació (màx. 50% subvenció)"]
[]
[]
[]
[]
[null,null,null,null,null,null,null,null,"Subtotal D1",{"$f":"SUM(J12:J15)","v":0},{"$f":"SUM(K12:K15)","v":0}]
["D1. Retribucions i seguretat social (règim general o règim d’autònoms) del personal propi vinculat/da al projecte amb antiguitat anterior a l'inici del projecte (màxim 30% subvenció)"]
[]
[]
[]
[]
[null,null,null,null,null,null,null,null,"Subtotal D1",{"$f":"SUM(J18:J21)","v":0},{"$f":"SUM(K18:K21)","v":0}]
["D2.   Treballs realitzats per professionals i empreses externes directament vinculades al projecte subvencionat"]
[]
[]
[]
[]
[null,null,null,null,null,null,null,null,"Subtotal D2",{"$f":"SUM(J24:J27)","v":0},{"$f":"SUM(K24:K27)","v":0}]
["D3.  Lloguer de béns mobles/ immobles directament vinculats al projecte subvencionable (màxim 25% subvenció en cas d'immobles per a un nou espai)"]
[]
[]
[]
[]
[null,null,null,null,null,null,null,null,"Subtotal D3",{"$f":"SUM(J30:J33)","v":0},{"$f":"SUM(K30:K33)","v":0}]
["D4. Adquisició de materials i béns consumibles íntegrament imputables al projecte subvencionat"]
[]
[]
[]
[]
[null,null,null,null,null,null,null,null,"Subtotal D4",{"$f":"SUM(J36:J39)","v":0},{"$f":"SUM(K36:K39)","v":0}]
["D5. Transport – missatgeria imputables al projecte"]
[]
[]
[]
[]
[null,null,null,null,null,null,null,null,"Subtotal D5",{"$f":"SUM(J42:J45)","v":0},{"$f":"SUM(K42:K45)","v":0}]
["D6. Publicitat i propaganda de les activitats directament vinculades al projecte subvencionat"]
[]
[]
[]
[]
[null,null,null,null,null,null,null,null,"Subtotal D6",{"$f":"SUM(J48:J51)","v":0},{"$f":"SUM(K48:K51)","v":0}]
["D7.  Allotjament i dietes, del personal contractat i voluntaris, vinculats al projecte"]
[]
[]
[]
[]
[null,null,null,null,null,null,null,null,"Subtotal D7",{"$f":"SUM(J54:J57)","v":0},{"$f":"SUM(K54:K57)","v":0}]
["D8.  Ajuts al transport per als/les participants dels projectes en cas que sigui necessari de manera justificada"]
[]
[]
[]
[]
[null,null,null,null,null,null,null,null,"Subtotal D8",{"$f":"SUM(J60:J63)","v":0},{"$f":"SUM(K60:K63)","v":0}]
["D9.  Viatges i desplaçaments imputables a les activitats del projecte subvencionat"]
[]
[]
[]
[]
[null,null,null,null,null,null,null,null,"Subtotal D9",{"$f":"SUM(J66:J69)","v":0},{"$f":"SUM(K66:K69)","v":0}]
["D10. Tributs, quan siguin abonats directament per la persona jurídica o física beneficiària"]
[]
[]
[]
[]
[null,null,null,null,null,null,null,null,"Subtotal D10",{"$f":"SUM(J72:J75)","v":0},{"$f":"SUM(K72:K75)","v":0}]
["D11.  Despeses de l'informe d'auditoria (màxim 1.500€ subvenció)"]
[]
[]
[]
[]
[null,null,null,null,null,null,null,null,"Subtotal D11",{"$f":"SUM(J78:J81)","v":0},{"$f":"SUM(K78:K81)","v":0}]
["D12.  Altres despeses que de manera justificada puguin imputar-se directament al projecte subvencionable"]
[]
[]
[]
[]
[null,null,null,null,null,null,null,null,"Subtotal D12",{"$f":"SUM(J84:J87)","v":0},{"$f":"SUM(K84:K87)","v":0}]
["TOTAL DESPESES DIRECTES ",null,null,null,null,null,null,null,"TOTAL DESPESES DIRECTES",{"$f":"J16+J22+J28+J34+J40+J46+J52+J58+J64+J70+J76+J82+J88","v":0},{"$f":"K16+K22+K28+K34+K40+K46+K52+K58+K64+K70+K76+K82+K88","v":0}]
["DESPESES INDIRECTES (no es poden assignar directament al projecte sense fer servir algun % d'assignació) (màxim 10% subvenció)"]
["I.1 Personal de suport al projecte (nòmines i seguretat social)"]
[]
[]
[]
[]
[null,null,null,null,null,null,null,null,"Subtotal I1",{"$f":"SUM(J92:J95)","v":0},{"$f":"SUM(K92:K95)","v":0}]
["I.2  Assegurances"]
[]
[]
[]
[]
[null,null,null,null,null,null,null,null,"Subtotal I2",{"$f":"SUM(J98:J101)","v":0},{"$f":"SUM(K98:K101)","v":0}]
["I.3  Amortització"]
[]
[]
[]
[]
[null,null,null,null,null,null,null,null,"Subtotal I3",{"$f":"SUM(J104:J107)","v":0},{"$f":"SUM(K104:K107)","v":0}]
["I.4  Lloguer de béns immobles"]
[]
[]
[]
[]
[null,null,null,null,null,null,null,null,"Subtotal I4",{"$f":"SUM(J110:J113)","v":0},{"$f":"SUM(K110:K113)","v":0}]
["I.5  Adquisició de materials i béns consumibles parcialment imputables al projecte"]
[]
[]
[]
[]
[null,null,null,null,null,null,null,null,"Subtotal I5",{"$f":"SUM(J116:J119)","v":0},{"$f":"SUM(K116:K119)","v":0}]
["I.6  Manteniment d’edificis i/o instal·lacions"]
[]
[]
[]
[]
[null,null,null,null,null,null,null,null,"Subtotal I6",{"$f":"SUM(J122:J125)","v":0},{"$f":"SUM(K122:K125)","v":0}]
["I.7  Comunicacions (telèfon, correus, connexió a internet)"]
[]
[]
[]
[]
[null,null,null,null,null,null,null,null,"Subtotal I7",{"$f":"SUM(J128:J131)","v":0},{"$f":"SUM(K128:K131)","v":0}]
["I.8  Despeses financeres"]
[]
[]
[]
[]
[null,null,null,null,null,null,null,null,"Subtotal I8",{"$f":"SUM(J134:J137)","v":0},{"$f":"SUM(K134:K137)","v":0}]
["I.9  Subministraments "]
[]
[]
[]
[]
[null,null,null,null,null,null,null,null,"Subtotal I9",{"$f":"SUM(J140:J143)","v":0},{"$f":"SUM(K140:K143)","v":0}]
["I.10  Treball realitzat per altres empreses, parcialment imputables al projecte (neteja, seguretat...)"]
[]
[]
[]
[]
[null,null,null,null,null,null,null,null,"Subtotal I10",{"$f":"SUM(J146:J149)","v":0},{"$f":"SUM(K146:K149)","v":0}]
["TOTAL DESPESES INDIRECTES ",null,null,null,null,null,null,null,"TOTAL DESPESES INDIRECTES",{"$f":"+J96+J102+J108+J114+J120+J126+J132+J138+J144+J150","v":0},{"$f":"+K96+K102+K108+K114+K120+K126+K132+K138+K144+K150","v":0}]
["TOTAL DESPESES",null,null,null,null,null,null,null,"TOTAL",{"$f":"J89+J151","v":0},{"$f":"K89+K151","v":0}]
[]
[]
["El Sr./Sra. (indicar el nom i cognoms de la persona representant que signa la justificació)  amb DNI/NIE (indicar el núm. DNI) en qualitat de persona física beneficiària o representant legal de la persona jurídica beneficiària (indicar nom i cognoms) amb NIF (indicar núm DNI)."]
["CERTIFICA que les despeses imputades al projecte/activitat/servei subvencionat han estat efectivament efectuades; que custodiarà la documentació suport que ho acredita; que  aquesta documentació es troba a disposició de l'Ajuntament de Barcelona o dels altres ens municipals en els arxius d'aquesta organització, durant un període mínim de 4 anys a comptar des de la data de presentació de la present justificació."]
[]
[]
[]
[]
[null,"Població i data: ",null,null,"Signatura i segell (en cas de registre físic)"]
[null,null,null,null,"En cas de presentació de la documentació per via telemàtica, cal imprimir/ desar els fulls en format pdf i signar-los electrònicament mitjançant certificat digital (no serà vàlida la signatura escanejada)."]
[]
["Notes:"]
["(*) S'han de relacionar totes les despeses del projecte/activitat/servei subvencionat. En el cas que el nombre de files de cada concepte sigui insuficient podeu inserir línies dins del mateix concepte seleccionant una cel·la verda i fent clic sobre el botó d'inserir línia."]
["(0) El número d'ordre ha de ser correlatiu començant per D.1.1, D1.2, D.1.3, D2.4, etc."]
["(1) Respecte a les despeses de recursos humans, pot ser subvencionable el cost total salarial mensual, que correspon a la suma de la retribució bruta que apareix a la nòmina del treballador/a més la quota de l'empresa a la Seg. Social. Les despeses de personal es justifiquen amb la nòmina del treballador/a acompanyada dels corresponents RLC i RNT (anteriors TC1 i TC2) de la TGSS i el model 111 de l'IRPF."]
["(2) En el cas que el document justificatiu de la resta de despeses, no sigui una factura, sinó un altre document probatori equivalent, com un rebut o justificant (com per dietes o transport públic), indiqueu-lo en la columna \"observacions\""]
["(3) En el cas que un justificant inclogui conceptes que no tenen relació amb el projecte/activitat/servei per al qual s'ha atorgat la subvenció, aquí només s'ha d'indicar la part que realment s'ha dedicat al projecte."]
["(4) En aquesta columna s'ha d'indicar l'import total o parcial de la factura  que s'imputa a la subvenció rebuda de l'Ajuntament de Barcelona. El total imputat, en aquesta columna, ha de ser igual  a l'import de la subvenció rebuda."]
[]
["Modalitat Bb. Creació, desenvolupament i enfortiment d'ecosistemes cooperatius i clústers d'ESS"]
["Submodalitat Bb2. Desenvolupament i enfortiment"]
["1.  La quantia de la subvenció atorgada no superarà el 80% de la despesa total del projecte a subvencionar. "]
["2. L'import màxim de subvenció per a aquesta submodalitat de l'àmbit temàtic de Reactivació: Intercooperació (Bb2) és 50.000€.\nLes persones sol·licitants han d'escollir una o altra submodalitat (Bb1 o Bb2) en la seva sol·licitud de subvenció: No és possible presentar-ne a les dues."]
["3.  En el cas que la sol·licitud presentada sobrepassi l’import màxim, es considerarà com a import sol·licitat el màxim de l'establert a la convocatòria."]
["4. En aquesta modalitat s'acceptarà la imputació de despeses de personal propi i directament vinculat al projecte de les organitzacions participants de l'acord de cooperació."]
["5.  Es limita amb un màxim del 50% l'import de la subvenció per  a despeses de personal propi de nova contractació assignat al projecte subvencionat (retribucions i seguretat social- règim general o autònoms-). Si el personal propi té una antiguitat anterior a la data d'inici del projecte subvencionat el percentatge màxim de la subvenció de personal propi serà  del 30% de l'import de la subvenció. "]
["6. Les despeses de lloguer d'immobles es limiten a un màxim del 25% si es tracta d'un nou espai físic necessari pel desenvolupament del projecte subvencionable. En el cas de lloguers d'immobles no relacionats directament amb el desenvolupament del projecte, aquestes despeses de lloguer s'imputaran a les despeses indirectes amb el límit establert per aquestes."]
["7. Per a les subvencions atorgades per import igual o superior a 20.000 € és necessari un informe d'auditoria per a la justificació. L'import d'aquest informe es considera despesa subvencionable, amb un límit màxim de 1.500€."]
["8. Són imputables en aquesta modalitat les despeses indirectes, detallades en l’apartat 13.3. de les bases reguladores; amb un màxim del 10% de l'import de la subvenció.\nEl caràcter subvencionable de la despesa d'amortització estarà subjecte a les condicions següents:\n> Que les subvencions no hagin contribuït a la compra dels béns.\n> Que l'amortització es calculi de conformitat amb les normes de comptabilitat generalment acceptades.\n> Que el cost es refereixi al període subvencionable.\n\n"]
["9. Caldrà acompanyar a la reformulació el nou acord de cooperació actualitzat i signat per les persones representants legals de l'entitat."]
["10.  Quan s'hagi de fer despeses de més de 12.000 €, sense IVA, en el cas de prestacions de serveis o lliurament de béns i per aquelles despeses de més de 30.000 €,  sense IVA, en el cas d'execució d'obres, s'hauran d'incorporar tres pressupostos sol·licitats i argumentar el motiu de l'adjudicació en el cas de no ser la proposta més avantatjosa econòmicament."]
["11. No seran elegibles factures d'empreses emeses entre les entitats participants de l'acord de cooperació."]
["12. En cap cas es consideraran despeses subvencionables:\n> Els impostos indirectes quan siguin susceptibles de recuperació o compensació.\n> Les despeses d'inversió, incloses les adquisicions de béns mobles.\n> Les despeses realitzades amb data anterior a l'inici del projecte i data posterior a la finalització del projecte.\n> Altres despeses que s'indiquin a la convocatòria."]
["13. La retribució de les persones contractades en el marc del projecte subvencionat no pot ser inferior al Salari Mínim Interprofessional (SMI), ni a l'estipulada al corresponent conveni o marc normatiu de referència (punt 7de les bases 2021: requisits dels projectes). D'acord amb el Reial decret 817/2021, de 28 de setembre, pel qual es fixa el salari mínim interprofessional per al 2021, la quantia mínima anual és de 13.510 euros. Aquest import pot ser modificat, d'acord amb la normativa vigent en el moment de la seva aplicació. "]
["14. Els materials produïts de difusió, estudis, informes o materials didàctics utilitzats, etc. en el cas de tractar-se de despesa elegible de la subvenció, hauran de tenir llicència Creative Commons -Compartir Igual- (share a like)  i no podrà tenir la condició –Sense Obres Derivades- (no derivate Works)."]
["15. Els projectes subvencionats han de fomentar activitats d'interès públic o social, les quals han de ser gratuïtes per a les persones participants o en cap cas el preu ha de suposar un obstacle per a la seva participació, buscant altres formes d'accés per a persones amb dificultats econòmiques. En el cas que hi hagi algun tipus de lucre, haurà de revertir en les pròpies activitats subvencionades."]
["16. L'Ajuntament de Barcelona i les seves entitats municipals en cap cas subvencionaran el mateix projecte, executat durant el mateix període, per cap altre procediment de concessió que no sigui el regulat per les bases reguladores."]
["17. El/la beneficiari/ària no podrà alterar en cap cas el destí de les subvencions concedides."]
["18. L'organització designada com a representant de l'agrupació serà plenament responsable del projecte davant l'Ajuntament respecte al compliment de les obligacions establertes en les bases reguladores, sense perjudici de la responsabilitat de les altres organitzacions sòcies de l'agrupació, tot sent-li d'aplicació els requisits previstos al punt 6.1 de les bases reguladores."]
["19. En cap cas podran formar part de l'agrupació les organitzacions que hagin rebut altres subvencions per a l'execució del mateix projecte d'altres administracions públiques."]

{"sheet":"Relació d'ingressos ","index":1,"n_rows":78,"n_cols":10,"rows_kept":78,"cut":false,"hidden":false,"merged":[[73,5,74,9],[17,6,17,9],[16,6,16,9],[34,6,34,9],[28,6,28,9],[47,6,47,9],[46,6,46,9],[26,6,26,9],[25,6,25,9],[24,6,24,9],[36,6,36,9],[35,6,35,9],[44,6,44,9],[30,6,30,9],[32,6,32,9],[31,6,31,9],[38,6,38,9],[14,0,14,3],[44,0,44,3],[27,0,27,9],[33,0,33,9],[39,0,39,9],[38,0,38,3],[32,0,32,3],[14,6,14,9],[20,6,20,9],[29,6,29,9],[20,0,20,3],[23,6,23,9],[22,6,22,9],[26,0,26,3],[19,6,19,9],[18,6,18,9],[37,6,37,9],[57,0,57,9],[56,6,56,9],[43,6,43,9],[42,6,42,9],[50,0,50,3],[53,6,53,9],[52,6,52,9],[41,6,41,9],[40,6,40,9],[51,0,51,9],[50,6,50,9],[49,6,49,9],[48,6,48,9],[45,0,45,9],[0,0,0,9],[9,0,9,9],[15,0,15,9],[21,0,21,9],[7,6,8,9],[10,6,10,9],[11,6,11,9],[7,0,8,0],[12,6,12,9],[13,6,13,9],[4,2,4,3],[3,2,3,3],[2,2,2,3],[6,0,6,3],[7,2,7,3],[7,1,8,1],[56,0,56,3],[64,6,64,9],[59,6,59,9],[66,6,66,9],[60,6,60,9],[61,6,61,9],[62,6,62,9],[63,6,63,9],[66,0,66,3],[65,0,65,3],[68,0,68,9],[69,0,70,9],[65,6,65,9],[72,1,72,3],[58,6,58,9]]}
["Detall de tots els ingressos obtinguts i aportacions del propi beneficiari per a l'execució de l'activitat subvencionada"]
[]
[null,"Nom de la persona física/jurídica beneficiària:        ",{"$f":"IF('Relació de despeses'!C3:D3<>\"\",'Relació de despeses'!C3:D3,\"\")","v":""},null,"Import del cost total del projecte :",null,null,{"$f":"IF(+'Relació de despeses'!J3=\"\",\"\",+'Relació de despeses'!J3)","v":""},"euros"]
[null,"Codi de subvenció",{"$f":"IF('Relació de despeses'!C4:D4<>\"\",'Relació de despeses'!C4:D4,\"\")","v":""},null,"Import de la subvenció atorgada:",null,null,{"$f":"IF(+'Relació de despeses'!J4=\"\",\"\",+'Relació de despeses'!J4)","v":""},"euros"]
[null,"Nom del projecte subvencionat",{"$f":"IF('Relació de despeses'!C5:D5<>\"\",'Relació de despeses'!C5:D5,\"\")","v":""},null,"Període d'execució del projecte subvencionat:",null,null,{"$f":"IF(+'Relació de despeses'!J5=\"\",\"\",+'Relació de despeses'!J5)","v":""},"a",{"$f":"IF(+'Relació de despeses'!M5=\"\",\"\",+'Relació de despeses'!M5)","v":""}]
[]
["Ingressos del projecte/activitat/servei subvencionat"]
["Núm. d'ordre (0)","Concepte de l'ingrés","Emissor/a de l'ingrés",null,"Data de cobrament\n(dd/mm/aaaa)","Import","Observacions"]
[null,null,"NIF","Nom","(1)","euros"]
["A. Subvenció municipal "]
[]
[]
[]
[]
[null,null,null,null,"Subtotal A",{"$f":"SUM(F11:F14)","v":0}]
["B. Subvencions d'altres administracions"]
[]
[]
[]
[]
[null,null,null,null,"Subtotal B",{"$f":"SUM(F17:F20)","v":0}]
["C. Subvencions d'ens privats"]
[]
[]
[]
[]
[null,null,null,null,"Subtotal C",{"$f":"SUM(F23:F26)","v":0}]
["D. Recursos propis de l'organització aplicats al projecte"]
[]
[]
[]
[]
[null,null,null,null,"Subtotal D",{"$f":"SUM(F29:F32)","v":0}]
["E. Taquillatge"]
[]
[]
[]
[]
[null,null,null,null,"Subtotal E",{"$f":"SUM(F35:F38)","v":0}]
["F. Quotes d'inscripció"]
[]
[]
[]
[]
[null,null,null,null,"Subtotal F",{"$f":"SUM(F41:F44)","v":0}]
["G. Venda de Productes"]
[]
[]
[]
[]
[null,null,null,null,"Subtotal G",{"$f":"SUM(F47:F50)","v":0}]
["H. Publicitat i/o Esponsorització"]
[]
[]
[]
[]
[null,null,null,null,"Subtotal H",{"$f":"SUM(F53:F56)","v":0}]
["I. Altres ingressos"]
[]
[]
[]
[]
[]
[]
[]
[null,null,null,null,"Subtotal I",{"$f":"SUM(F59:F65)","v":0}]
["Total INGRESSOS",null,null,null,"TOTAL",{"$f":"+F15+F21+F27+F33+F39+F45+F51+F57+F66","v":0}]
[]
[{"$f":"'[1]Relació de despeses'!A130:K130","v":"El Sr./Sra. (indicar el nom i cognoms de la persona representant que signa la justificació)  amb DNI/NIE (indicar el núm. DNI) en qualitat de persona física beneficiària o representant legal de la persona jurídica beneficiària (indicar nom i cognoms) amb NIF (indicar núm DNI)."}]
["CERTIFICA que els ingressos imputats al projecte/activitat/servei subvencionat han estat efectivament ingressats; que custodiarà la documentació suport que ho acredita; que  aquesta documentació es troba a disposició de l'Ajuntament de Barcelona o dels altres ens municipals en els arxius d'aquesta organització, durant un període mínim de 4 anys a comptar des de la data de presentació de la present justificació."]
[]
[]
[null,"Població i data: ",null,null,null,"Signatura i segell (en cas de registre físic)"]
[null,null,null,null,null,"En cas de presentació de la documentació per via telemàtica, cal imprimir/ desar els fulls en format pdf i signar-los electrònicament mitjançant certificat digital (no serà vàlida la signatura escanejada)."]
[]
[null,"Nota:"]
[null,"(0) El número d'ordre ha de ser correlatiu començant pel número A1, A2, A3, B4, etc."]
[null,"(1) En cas que l'ingrés estigui pendent cobrament, indicar \"P. Cobrament\" "]

{"sheet":"despeses i ingressos","index":2,"n_rows":101,"n_cols":11,"rows_kept":101,"cut":false,"hidden":false,"merged":[[49,0,49,10],[10,2,11,2],[10,3,11,3],[10,6,11,7],[29,6,29,7],[26,0,27,1],[26,2,27,2],[26,3,27,3],[28,6,28,7],[41,0,41,9],[42,0,43,9],[45,1,45,2],[46,4,47,10],[4,5,4,6],[5,0,5,1],[5,2,5,3],[5,5,5,6],[55,0,55,10],[50,0,50,10],[53,0,53,10],[54,0,54,10],[51,0,51,10],[52,0,52,10],[9,6,9,7],[29,8,29,9],[37,7,39,10],[10,8,11,8],[10,9,11,9],[10,0,11,1],[6,0,6,1],[6,2,6,3],[9,0,9,1],[4,0,4,1],[4,2,4,3]]}
[]
[]
["Estat de les despeses realitzades i dels ingressos obtinguts per a l'execució de l'activitat subvencionada (*)"]
[]
["Nom de la persona física/jurídica beneficiària:         ",null,{"$f":"'Relació d''ingressos '!C3:D3","v":""},null,null,"Import del cost total del projecte:",null,{"$f":"'Relació d''ingressos '!H3","v":""},"euros"]
["Codi de subvenció:",null,{"$f":"'Relació d''ingressos '!C4:D4","v":""},null,null,"Import de la subvenció atorgada:",null,{"$f":"'Relació d''ingressos '!H4","v":""},"euros"]
["Nom del projecte subvencionat:",null,{"$f":"'Relació d''ingressos '!C5:D5","v":""},null,null,"Període d'execució del projecte subvencionat:",null,null,{"$f":"'Relació d''ingressos '!H5","v":""},"a",{"$f":"'Relació d''ingressos '!J5","v":""}]
[]
["SUBVENCIONS PER A L'ENFORTIMENT I REACTIVACIÓ DE L'ECONOMIA SOCIAL I SOLIDÀRIA 2021"]
["DESPESES PREVISTES",null,"import en euros",null,null,null,"INGRESSOS PREVISTOS",null,"import en euros"]
["Despeses directes \n(aquelles que s'identifiquen directament amb el projecte)",null,"Previsió inicial o reformulada ja aprovada (1)","Despeses realitzades (2)","Diferència\n",null,"Ingressos previstos",null,"Previsió inicial (1)","Ingressos obtinguts (3)"]
[null,null,null,null,"(2-1)"]
["Bb2","D1.  - Retribucions i seguretat social (règim general o règim d’autònoms) del personal propi vinculat/da al projecte de nova contractació (màxim 50% subvenció)",null,{"$f":"'Relació de despeses'!J16","v":0},{"$f":"+C13-D13","v":0},null,"A.","Subvenció municipal (import sol·licitat a la instància/atorgat)",null,{"$f":"'Relació d''ingressos '!F15","v":0}]
[null,"D1.  - Retribucions i seguretat social (règim general o règim d’autònoms) del personal propi vinculat/da al projecte amb antiguitat anterior a l'inici del projecte (màxim 30% subvenció)",null,{"$f":"'Relació de despeses'!J22","v":0},0,null,"B.","Subvencions d'altres administracions",null,{"$f":"'Relació d''ingressos '!F21","v":0}]
[null,"D2.  Treballs realitzats per professionals i empreses externes directament vinculades al projecte subvencionat",null,{"$f":"'Relació de despeses'!J28","v":0},0,null,"C.","Subvencions d'ens privats",null,{"$f":"'Relació d''ingressos '!F27","v":0}]
[null,"D3.  Lloguer de béns mobles/ immobles directament vinculats al projecte subvencionable (màxim 25% subvenció en cas d'immobles per a un nou espai)",null,{"$f":"'Relació de despeses'!J34","v":0},0,null,"D.","Recursos propis de l'organització aplicats al projecte",null,{"$f":"'Relació d''ingressos '!F33","v":0}]
[null,"D4.  Adquisició de materials i béns consumibles íntegrament imputables al projecte ",null,{"$f":"'Relació de despeses'!J40","v":0},0,null,"E.","Taquillatge",null,{"$f":"'Relació d''ingressos '!F39","v":0}]
[null,"D5.  Transport – missatgeria imputables al projecte ",null,{"$f":"'Relació de despeses'!J46","v":0},0,null,"F.","Quotes d'inscripció",null,{"$f":"'Relació d''ingressos '!F45","v":0}]
[null,"D6. Publicitat i propaganda de les activitats directament vinculades al projecte ",null,{"$f":"'Relació de despeses'!J52","v":0},0,null,"G.","Venda de Productes",null,{"$f":"'Relació d''ingressos '!F51","v":0}]
[null,"D7.  Allotjament i dietes, del personal contractat i voluntaris",null,{"$f":"'Relació de despeses'!J58","v":0},0,null,"H","Publicitat i/o Esponsorització",null,{"$f":"'Relació d''ingressos '!F57","v":0}]
[null,"D8. Ajuts al transport per als/les participants dels projectes en cas que sigui necessari de manera justificada",null,{"$f":"'Relació de despeses'!J64","v":0},0,null,"I.","Altres ingressos",null,{"$f":"'Relació d''ingressos '!F66","v":0}]
[null,"D9.   Viatges i desplaçaments imputables a les activitats del projecte subvencionat",null,{"$f":"'Relació de despeses'!J70","v":0},0,null,null,"Total Ingressos",{"$f":"SUM(I13:I21)","v":0},{"$f":"SUM(J13:J21)","v":0}]
[null,"D10. Tributs, quan siguin abonats directament per la persona jurídica o física beneficiària",null,{"$f":"'Relació de despeses'!J76","v":0},0]
[null,"D.11.  Despeses de l'informe d'auditoria (màx. 1.500€ subvenció",null,{"$f":"'Relació de despeses'!J82","v":0},0]
[null,"D12.  Altres despeses que de manera justificada puguin imputar-se directament al projecte subvencionable",null,{"$f":"'Relació de despeses'!J88","v":0},0]
[null,"Total Despeses Directes   ",{"$f":"SUM(C13:C25)","v":0},{"$f":"SUM(D13:D25)","v":0},{"$f":"SUM(E13:E25)","v":0}]
["Despeses indirectes \n (es podran assignar al projecte fent sevir un percentatge d’assignació) ",null,"Previsió inicial o reformulada ja aprovada (1)","Despeses realitzades (2)","Diferència\n"]
[null,null,null,null,"(2-1)"]
["Bb","I.1 Personal de suport al projecte subvencionat (Nòmines i seguretat social)",null,{"$f":"'Relació de despeses'!J96","v":0},{"$f":"+C29-D29","v":0},null,"Ingressos menys despeses ",null,{"$f":"+I22-C40","v":0},{"$f":"+J22-D40","v":0}]
[null,"I2.  Assegurances",null,{"$f":"'Relació de despeses'!J102","v":0},0,null,"Desviació de Despeses (4)",null,"Desviació d'ingressos (4)"]
[null,"I.3  Amortització",null,{"$f":"'Relació de despeses'!J108","v":0},0,null,"Import"," % ","Import","%"]
[null,"I.4  Lloguer de béns immobles",null,{"$f":"'Relació de despeses'!J114","v":0},0,null,{"$f":"D40-C40","v":0},{"$f":"D40/C40","v":{"$error":"#DIV/0!"}},{"$f":"J22-I22","v":0},{"$f":"J22/I22","v":{"$error":"#DIV/0!"}}]
[null,"I.5  Adquisició de materials i béns consumibles parcialment imputables al projecte",null,{"$f":"'Relació de despeses'!J120","v":0},0,null,null,null,"% subvencionat inicialment o després de reformulació (5)",{"$f":"I13/I22","v":{"$error":"#DIV/0!"}}]
[null,"I.6  Manteniment d’edificis i/o instal·lacions",null,{"$f":"'Relació de despeses'!J126","v":0},0,null,null,null,"% subvencionat després de justificació (6)",{"$f":"J13/J22","v":{"$error":"#DIV/0!"}}]
[null,"I.7  Comunicacions (telèfon, correus, connexió a internet)",null,{"$f":"'Relació de despeses'!J132","v":0},0]
[null,"I.8  Despeses financeres",null,{"$f":"'Relació de despeses'!J138","v":0},0]
[null,"I.9  Subministraments ",null,{"$f":"'Relació de despeses'!J144","v":0},0]
[null,"I.10  Treball realitzat per altres empreses, parcialment imputables al projecte (neteja, seguretat...)",null,{"$f":"'Relació de despeses'!J150","v":0},0]
[null,"Total Despeses Indirectes   (Màx. 10% subv)",{"$f":"SUM(C29:C38)","v":0},{"$f":"SUM(D29:D38)","v":0},{"$f":"SUM(E29:E38)","v":0}]
[null,"Total Despeses ",{"$f":"+C26+C39","v":0},{"$f":"+D26+D39","v":0},{"$f":"+E39+E26","v":0}]
[]
["El Sr./Sra. (indicar el nom i cognoms de la persona representant que signa la justificació)  amb DNI/NIE (indicar el núm. DNI) en qualitat de persona física beneficiària o representant legal de la persona jurídica beneficiària (indicar nom i cognoms) amb NIF (indicar núm DNI)."]
["CERTIFICA que els ingressos imputats al projecte/activitat/servei subvencionat han estat efectivament ingressats; que custodiarà la documentació suport que ho acredita; que  aquesta documentació es troba a disposició de l'Ajuntament de Barcelona o dels altres ens municipals en els arxius d'aquesta organització, durant un període mínim de 4 anys a comptar des de la data de presentació de la present justificació."]
[]
[]
[null,"Població i data: ",null,null,"Signatura i segell (en cas de registre físic)"]
[null,null,null,null,"En cas de presentació de la documentació per via telemàtica, cal imprimir/ desar els fulls en format pdf i signar-los electrònicament mitjançant certificat digital (no serà vàlida la signatura escanejada)."]
[]
["Notes:"]
["(*) Les columnes ombrejades en color  s'aniran emplenant automàticament a partir de les dades introduïdes en els documents de despeses -detall i ingressos-detall. Per tant, no imprimiu aquest full fins haver emplenat els altres."]
["(1) Previsió inicial o reformulació ja aprovada= S'han d'indicar la previsió inicial de despeses i d'ingressos segons allò que es va indicar al projecte original en el \"pla de viabilitat econòmica del projecte - pressupost general\" . En cas que ja s'hagi aprovat una reformulació, s'han d'indicar les quantitats reformulades. "]
["(2) Despeses reals = Cost real total del projecte subvencionat. Automàticament s'introduiran els subtotals de les despeses relacionades al full Despeses-detall."]
["(3) Ingresos reals = Total d'ingressos obtinguts per a la realització del projecte subvencionat. Automàticament s'introduiran els subtotals dels ingressos relacionats al full Ingressos-detall"]
["(4) Desviació: En el cas de les despeses, la desviació és la diferència entre despeses reals i la previsió inicial de despeses; i en el cas d'ingressos, la diferència entre els ingressos reals i la previsió inicial d'ingressos. "]
["(5) % finançament municipal inicial o després de reformulació = percentatge que suposen les subvencions municipals (A) respecte del  total d'ingressos del projecte subvencionat."]
["(6) % finançament municipal després de justificació = percentatge que suposa la subvenció municipal (A) respecte del  total d'ingressos del projecte subvencionat. En cas d'existir una desviació sempre s'ha de motivar."]
[]
[]
[]
[]
[]
[]
[]
[]
[]
[]
[]
[]
[]
[]
[]
[]
[]
[]
[]
[]
[]
[]
[]
[]
[]
[]
[]
[]
[]
[]
[]
[]
[]
[]
[]
[]
[]
[]
[]
[]
[]
[]
[]
[]
[null,null,0]